lending/lending_fUSD_20240510
["ID","MTS","AMOUNT","RATE_DAILY","PERIOD"]
[326773641,1715349038036,-4783.50132223,0.00012999,2]
[326773642,1715349038045,-87412.11898839,0.00012999,2]
[326773643,1715349038055,-151.0,0.00012999,2]
[326773644,1715349038064,-151.0,0.00012999,2]
[326773645,1715349038073,-249.1741,0.00012999,2]
[326773646,1715349038083,-286.70691,0.00012999,2]
[326773647,1715349038093,-405.805892,0.00012999,2]
[326773648,1715349038102,-405.805892,0.00012999,2]
[326773649,1715349038111,-151.0,0.00012999,2]
[326773650,1715349038120,-319859.86342863,0.00013,2]
[326773651,1715349038134,-758765.33458609,0.00013,2]
[326773652,1715349038145,-7798.78090812,0.00013,2]
[326773657,1715349038263,-5011.6,0.00013,2]
[326773660,1715349038275,-531322.27656344,0.00013,2]
[326773662,1715349038284,-153804.58499203,0.00013,2]
[326773664,1715349038296,-948.289,0.00013,2]
[326773759,1715349039970,-151.0,0.00012999,2]
[326773760,1715349039981,-1127.08174437,0.00013,2]
[326773761,1715349039994,-866.57163133,0.00013,2]
[326773762,1715349040006,-310.11297477,0.00013,2]
[326773763,1715349040018,-2762.66955118,0.00013,2]
[326773764,1715349040030,-886.45947666,0.00013,2]
[326773765,1715349040104,-927.63704286,0.00013,2]
[326773766,1715349040228,-386.7847,0.00013,2]
[326773767,1715349040240,-12281.394,0.00013,2]
[326773768,1715349040390,-244.276831,0.00012999,2]
[326773769,1715349040400,-132300.31858974,0.00013,2]
[326773770,1715349040411,-113883.87737227,0.00013,2]
[326773771,1715349040422,-15890.59367487,0.00013,2]
[326773772,1715349040436,-44504.82148139,0.00013,2]
[326773824,1715349042932,-415.68909921,0.00012999,2]
[326773837,1715349043047,-374.70879265,0.00012999,2]
[326773839,1715349043059,-685.50165271,0.00012999,2]
[326773850,1715349043160,-421.79517774,0.00012999,2]
[326773862,1715349043270,-313.52848132,0.00012999,2]
[326773877,1715349043447,-1615.57785415,0.00012999,2]
[326773880,1715349043456,-4351.00689196,0.00013,2]
[326773884,1715349043468,-591931.47146983,0.00013,2]
[326773945,1715349046466,-151.0,0.00012999,2]
[326773946,1715349046475,-155.46848201,0.00012999,2]
[326773947,1715349046484,-340.50273141,0.00012999,2]
[326773948,1715349046493,-155.0,0.00012999,2]
[326773949,1715349046503,-6540.85938279,0.00013,2]
[326773950,1715349046514,-1566.57734803,0.00013,2]
[326773951,1715349046534,-264.97384629,0.00013,2]
[326774016,1715349932365,313.481,0.00011673,2]
[326774018,1715350177428,159.62068072,0.00011623,2]
[326774020,1715350196635,601.10589198,0.00011337,2]
[326774026,1715350233572,-480.55860352,0.00011718,2]
[326774027,1715350233584,-58.4554174,0.00011718,2]
[326774028,1715350233593,-155.0,0.00011719,2]
[326774029,1715350233602,-237.2280325,0.00011719,2]
[326774030,1715350233612,-333.0,0.00011719,2]
[326774031,1715350233621,-1000.0,0.00011722,2]
[326774033,1715350233630,-906.77,0.000119,2]
[326774034,1715350233640,-212.33,0.000119,2]
[326774035,1715350233649,-200.0,0.00011905,2]
[326774036,1715350233658,-184.52,0.00011953,2]
[326774037,1715350233667,-172.41,0.00011953,2]
[326774038,1715350233677,-250.0,0.00011953,2]
[326774039,1715350233686,-5330.53661222,0.00012,2]
[326774040,1715350233698,-2307.44308,0.00012,2]
[326774041,1715350233834,-3815.76174531,0.00012,2]
[326774042,1715350233844,-1798.85,0.00012,2]
[326774043,1715350233854,-250.0,0.00012004,2]
[326774044,1715350233863,-499.99,0.00012004,2]
[326774045,1715350233873,-815.48,0.00012269,2]
[326774046,1715350233883,-1830.35486963,0.00012599,2]
[326774047,1715350233892,-674.3265,0.000126,2]
[326774048,1715350233901,-3222.94117068,0.000126,2]
[326774049,1715350233912,-38165.2504503,0.000126,2]
[326774050,1715350233924,-1400.0,0.000126,2]
[326774051,1715350233935,-305.0,0.000126,2]
[326774052,1715350233948,-256.269,0.000126,2]
[326774053,1715350233959,-599.93483525,0.000126,2]
[326774054,1715350233971,-6265.73171782,0.000126,2]
[326774055,1715350233981,-313.48100007,0.000126,2]
[326774065,1715350238568,-6204.96,0.000126,2]
[326774069,1715350238580,-80432.77822588,0.000126,2]
[326774070,1715350238590,-926.78368675,0.00012696,2]
[326774072,1715350238600,-87412.11898839,0.00012698,2]
[326774074,1715350238611,-1000.0,0.00012698,2]
[326774075,1715350238620,-563.11568634,0.00012698,2]
[326774076,1715350238630,-2029.81619606,0.00012698,2]
[326774077,1715350238640,-2210.05511976,0.00012698,2]
[326774078,1715350238650,-3434.562,0.00012698,2]
[326774079,1715350238660,-100000.0,0.000127,2]
[326774080,1715350238670,-3502.08126514,0.0001283,2]
[326774081,1715350238680,-35158.64746981,0.0001287,2]
[326774082,1715350238689,-1520.7036,0.0001287,2]
[326774083,1715350238699,-150.0,0.00012897,2]
[326774084,1715350238708,-184002.5302,0.000129,2]
[326774085,1715350238718,-500.0,0.000129,2]
[326774086,1715350238728,-167.04192647,0.000129,2]
[326774087,1715350238740,-155.32500028,0.00012998,2]
[326774088,1715350238751,-539.12298364,0.00012998,2]
[326774089,1715350238762,-155.0,0.00012998,2]
[326774090,1715350238772,-363.20906257,0.00012998,2]
[326774091,1715350238781,-220.5413736,0.00012998,2]
[326774092,1715350238792,-156.92700433,0.00012998,2]
[326774093,1715350238802,-1765.62953938,0.00012998,2]
[326774094,1715350238811,-1623.25968664,0.00012998,2]
[326774095,1715350238821,-1021.63834331,0.00012998,3]
[326774096,1715350238831,-16372.81344266,0.00012999,2]
[326774097,1715350238840,-265.636918,0.00012999,2]
[326774098,1715350238850,-4018.14111067,0.00012999,2]
[326774099,1715350238860,-201041.47905178,0.00013,2]
[326774102,1715350238870,-3000.0,0.00013,2]
[326774103,1715350238879,-24440.8239405,0.00013138,2]
[326774106,1715350238890,-27250.9003073,0.00013138,2]
[326774108,1715350238900,-2307.2077709,0.00013147,2]
[326774110,1715350238910,-7752.5317538,0.00013156,2]
[326774112,1715350238919,-4255.7911814,0.00013165,2]
[326774114,1715350238928,-377.46,0.00013425,2]
[326774116,1715350238937,-350.78,0.00013425,2]
[326774118,1715350238947,-184.52,0.00013447,2]
[326774120,1715350238957,-1216.72,0.00013699,2]
[326774122,1715350238966,-397.16117121,0.000137,2]
[326774124,1715350238975,-815.48,0.00013803,2]
[326774126,1715350238985,-3000.0,0.00014,2]
[326774128,1715350238998,-210.0,0.00014187,2]
[326774129,1715350239007,-11375.63985946,0.00014473,2]
[326774132,1715350239017,-172.41,0.00014693,2]
[326774134,1715350239027,-209.40013676,0.000149,2]
[326774135,1715350239036,-184.52,0.00014941,2]
[326774138,1715350239046,-4214.385869,0.00015,2]
[326774139,1715350239056,-3000.0,0.00015,2]
[326774142,1715350239066,-815.48,0.00015336,2]
[326774144,1715350239076,-1520.70361,0.0001537,2]
[326774146,1715350239086,-167.23,0.00015546,2]
[326774148,1715350239096,-3000.0,0.00016,2]
[326774150,1715350239105,-11375.63985946,0.00016047,2]
[326774152,1715350239115,-17705.0,0.000161,5]
[326774154,1715350239125,-184.52,0.00016435,2]
[326774156,1715350239134,-2680.0,0.000168,2]
[326774158,1715350239144,-815.48,0.0001687,2]
[326774160,1715350239158,-559.0,0.00017,2]
[326774162,1715350239168,-3000.0,0.00017,2]
[326774164,1715350239178,-650.42497036,0.00017264,2]
[326774166,1715350239189,-172.41,0.00017432,2]
[326774168,1715350239199,-11375.63985946,0.0001762,2]
[326774170,1715350239209,-179.0,0.0001766,2]
[326774172,1715350239218,-212.33,0.0001785,2]
[326774174,1715350239231,-1520.7036,0.0001787,2]
[326774176,1715350239244,-150.69943881,0.0001788,2]
[326774178,1715350239254,-1222.27471638,0.0001788,2]
[326774180,1715350239265,-1222.27471633,0.0001788,2]
[326774182,1715350239275,-1222.27471633,0.0001788,2]
[326774184,1715350239286,-184.52,0.00017929,2]
[326774186,1715350239297,-3000.0,0.00018,2]
[326774188,1715350239308,-1222.27471633,0.00018397,2]
[326774190,1715350239318,-815.48,0.00018404,2]
[326774192,1715350239329,-179.05,0.00018466,2]
[326774194,1715350239340,-2543.7567469,0.0001875,2]
[326774196,1715350239351,-5000.0,0.00019,2]
[326774198,1715350239362,-3000.0,0.00019,2]
[326774200,1715350239372,-158.61,0.00019178,2]
[326774202,1715350239382,-154.34,0.00019178,2]
[326774204,1715350239392,-159.18,0.00019178,2]
[326774206,1715350239402,-11375.63985946,0.00019194,2]
[326774208,1715350239412,-650.42497036,0.00019511,2]
[326774210,1715350239422,-200.0,0.0001983,2]
[326774212,1715350239432,-151.91320181,0.000199,2]
[326774214,1715350239441,-221.13670093,0.00019924,2]
[326774216,1715350239450,-155.0,0.0002,2]
[326774218,1715350239461,-6233.58277713,0.0002,2]
[326774220,1715350239471,-861.5014495,0.0002,2]
[326774222,1715350239482,-155.70142758,0.0002,2]
[326774224,1715350239495,-4873.61110047,0.0002,2]
[326774226,1715350239505,-3000.0,0.0002,2]
[326774228,1715350239515,-1667.565783,0.0002,2]
[326774231,1715350239528,-1000.0,0.0002,2]
[326774233,1715350239539,-150.15301608,0.00020024,2]
[326774235,1715350239549,-154.65057799,0.0002031,2]
[326774236,1715350239560,-155.15556544,0.00020313,2]
[326774237,1715350239570,-155.15556544,0.00020326,2]
[326774239,1715350239580,-1222.27471633,0.00020337,2]
[326774240,1715350239589,-1520.70361,0.0002037,2]
[326774241,1715350239600,-150.15301608,0.00020374,2]
[326774242,1715350239609,-155.15556544,0.00020391,2]
[326774243,1715350239619,-155.56828868,0.00020442,2]
[326774244,1715350239629,-288.0,0.00020518,2]
[326774245,1715350239639,-1059.0,0.00020518,2]
[326774246,1715350239649,-155.56828868,0.00020534,2]
[326774247,1715350239659,-188.48964945,0.00020683,2]
[326774248,1715350239668,-353.0,0.000207,2]
[326774249,1715350239679,-646.0,0.00020767,2]
[326774250,1715350239688,-11375.63985946,0.00020767,2]
[326774251,1715350239699,-155.56828868,0.0002094,2]
[326774252,1715350239708,-150.15301608,0.00020997,2]
[326774253,1715350239718,-151.0,0.00020997,2]
[326774254,1715350239728,-366.96112777,0.00021,2]
[326774255,1715350239737,-2215.11343661,0.00021,2]
[326774256,1715350239750,-3000.0,0.00021,2]
[326774257,1715350239760,-286.70691,0.00021,2]
[326774258,1715350239770,-155.15556544,0.00021019,2]
[326774259,1715350239781,-163.69417388,0.00021067,2]
[326774260,1715350239791,-188.48964945,0.00021121,2]
[326774261,1715350239801,-150.69943881,0.00021307,2]
[326774262,1715350239811,-19942.79,0.0002137,2]
[326774263,1715350239821,-151.0,0.0002137,2]
[326774264,1715350239831,-150.15301608,0.0002148,2]
[326774265,1715350239924,-650.42497036,0.00021759,2]
[326774266,1715350239934,-150.15301608,0.00021767,2]
[326774267,1715350239944,-6765.16526746,0.000219,2]
[326774268,1715350239954,-249.1741,0.000219,2]
[326774269,1715350239964,-250.0,0.00021918,2]
[326774270,1715350239973,-2000.0,0.00021918,2]
[326774271,1715350239983,-3000.0,0.00022,2]
[326774272,1715350239997,-221.13670092,0.0002211,2]
[326774273,1715350240008,-1260.0,0.00022115,2]
[326774274,1715350240018,-1227.0,0.00022115,2]
[326774275,1715350240030,-1222.27471633,0.00022277,2]
[326774276,1715350240040,-11375.63985946,0.00022341,2]
[326774277,1715350240049,-1520.70361,0.0002287,2]
[326774278,1715350240059,-3000.0,0.00023,2]
[326774279,1715350240069,-462.99,0.00023,2]
[326774280,1715350240078,-156.07730059,0.00023378,2]
[326774281,1715350240087,-155.15556544,0.00023494,2]
[326774282,1715350240097,-1059.0,0.00023518,2]
[326774283,1715350240106,-155.53423594,0.00023738,2]
[326774284,1715350240115,-150.61165562,0.00023893,2]
[326774285,1715350240125,-11375.63985946,0.00023914,2]
[326774286,1715350240134,-1072.80775125,0.00024,2]
[326774287,1715350240145,-432.59885389,0.00024,2]
[326774288,1715350240155,-150.0,0.00024,4]
[326774289,1715350240165,-2319.4339856,0.00024,2]
[326774290,1715350240177,-3000.0,0.00024,2]
[326774291,1715350240186,-650.42497036,0.00024006,2]
[326774292,1715350240196,-157.05198784,0.00024079,2]
[326774293,1715350240206,-338.34,0.00024102,2]
[326774294,1715350240216,-1222.27471633,0.00024217,2]
[326774295,1715350240226,-180.0,0.0002423,2]
[326774296,1715350240237,-221.13670092,0.00024296,2]
[326774297,1715350240251,-150.0,0.00024355,2]
[326774298,1715350240260,-150.15301608,0.00024498,2]
[326774299,1715350240270,-377.46,0.00024658,2]
[326774300,1715350240280,-350.78,0.00024658,2]
[326774301,1715350240289,-250.0,0.00024658,2]
[326774302,1715350240299,-153.85151725,0.0002481,2]
[326774303,1715350240307,-9144.88180711,0.0002499,2]
[326774304,1715350240317,-155.0,0.00025,2]
[326774305,1715350240326,-2219.93951707,0.00025,2]
[326774306,1715350240335,-925.8669637,0.00025,2]
[326774307,1715350240345,-471.94368644,0.00025,2]
[326774308,1715350240355,-160.0,0.00025,4]
[326774309,1715350240364,-1038.22024424,0.00025,2]
[326774310,1715350240373,-3000.0,0.00025,2]
[326774311,1715350240384,-297.0,0.00025003,2]
[326774312,1715350240393,-9203.51379518,0.00025102,2]
[326774313,1715350240402,-418.844,0.00025115,2]
[326774314,1715350240411,-994.708,0.00025115,2]
[326774315,1715350240421,-1520.7036,0.0002537,2]
[326774316,1715350240430,-11375.63985946,0.00025488,2]
[326774317,1715350240439,-150.15301608,0.0002561,2]
[326774318,1715350240449,-155.15556544,0.00025849,2]
[326774319,1715350240458,-3000.0,0.00026,2]
[326774320,1715350240467,-150.61165562,0.00026115,2]
[326774321,1715350240476,-155.15556544,0.00026154,2]
[326774322,1715350240485,-150.15301608,0.00026159,2]
[326774323,1715350240497,-650.42497036,0.00026253,2]
[326774324,1715350240506,-155.15556544,0.00026387,2]
[326774325,1715350240515,-200.397226,0.00026389,2]
[326774326,1715350240524,-214.97619056,0.00026438,2]
[326774327,1715350240533,-155.0,0.00026439,2]
[326774328,1715350240543,-221.13670092,0.00026481,2]
[326774329,1715350240552,-12641.25830243,0.000265,2]
[326774330,1715350240561,-1007.19189497,0.000265,2]
[326774331,1715350240571,-318.366,0.00026518,2]
[326774332,1715350240580,-150.15301608,0.00026535,2]
[326774333,1715350240589,-154.34,0.00026541,2]
[326774334,1715350240598,-155.15556544,0.00026568,2]
[326774335,1715350240607,-167.77315298,0.000267,2]
[326774336,1715350240616,-200.397226,0.00026718,2]
[326774337,1715350240625,-300.0,0.00026722,2]
[326774338,1715350240634,-300.0,0.0002676,2]
[326774339,1715350240643,-200.0,0.00026763,2]
[326774340,1715350240653,-202.570383,0.00026763,2]
[326774341,1715350240662,-500.0,0.00026763,2]
[326774342,1715350240671,-200.0,0.00026764,2]
[326774343,1715350240680,-500.0,0.00026764,2]
[326774344,1715350240689,-500.0,0.00026764,2]
[326774345,1715350240698,-200.0,0.00026764,2]
[326774346,1715350240708,-300.0,0.00026782,2]
[326774347,1715350240717,-214.0,0.000268,2]
[326774348,1715350240726,-156.02869598,0.000268,2]
[326774349,1715350240735,-158055.03636987,0.000268,10]
[326774350,1715350240745,-151.0,0.000268,7]
[326774351,1715350240754,-300.0,0.00026851,2]
[326774352,1715350240763,-300.0,0.00026851,2]
[326774353,1715350240772,-174.05055866,0.0002688,5]
[326774354,1715350240781,-583.83310749,0.0002688,2]
[326774355,1715350240789,-623.88122408,0.0002688,2]
[326774356,1715350240799,-3631.14935509,0.0002688,2]
[326774357,1715350240808,-197.23787276,0.0002688,2]
[326774358,1715350240817,-253.15673692,0.0002688,2]
[326774359,1715350240827,-253159.74520972,0.000269,2]
[326774360,1715350241949,-405.805892,0.00020997,2]
[326774361,1715350241960,-12196.011448,0.000269,2]
[326774362,1715350241974,-6150.44807345,0.000269,2]
[326774363,1715350241987,-272.97766749,0.000269,2]
[326774416,1715350244039,-1040.8929506,0.00012999,2]
[326774417,1715350244050,-547.624316,0.00012999,2]
[326774418,1715350244104,-1625.99562194,0.00012999,2]
[326774419,1715350244114,-155.0,0.00019,2]
[326774420,1715350244123,-151.0,0.00020997,2]
[326774421,1715350244132,-405.805892,0.00020997,2]
[326774422,1715350244141,-1222.27471633,0.00026156,2]
[326774423,1715350244155,-405.805892,0.000268,7]
[326774424,1715350244164,-151.0,0.000268,7]
[326774425,1715350244174,-405.805892,0.000268,7]
[326774426,1715350244184,-11821.07410574,0.000269,2]
[326774427,1715350244196,-620.62,0.000269,2]
[326774428,1715350244207,-1999.46040055,0.000269,2]
[326774429,1715350244218,-361.32,0.000269,2]
[326774430,1715350244229,-432.917,0.000269,2]
[326774431,1715350244240,-332.59159891,0.000269,2]
[326774432,1715350244252,-127297.29530717,0.000269,2]
[326774433,1715350244264,-392.4809798,0.000269,2]
[326774434,1715350244276,-1020.00735648,0.000269,2]
[326774435,1715350244287,-7160.06582164,0.000269,2]
[326774436,1715350244298,-1978.96751971,0.000269,2]
[326774440,1715350244455,-934.38,0.000269,2]
[326774441,1715350244466,-391.68516296,0.000269,2]
[326774442,1715350244477,-310.0,0.000269,2]
[326774450,1715350246130,-3185.59392,0.00012998,2]
[326774451,1715350246396,-631.43,0.00012998,2]
[326774452,1715350246408,-511.80570198,0.00012998,2]
[326774453,1715350246419,-1671.53350245,0.00012998,2]
[326774454,1715350246429,-301.189706,0.00020997,2]
[326774455,1715350246438,-29604.27720641,0.000269,2]
[326774456,1715350246449,-2461.5500403,0.000269,2]
[326774457,1715350246461,-526.5161813,0.000269,2]
[326774458,1715350246472,-13468.20012152,0.000269,2]
[326774459,1715350246484,-58256.86041885,0.000269,2]
[326774460,1715350246494,-151.0,0.000269,7]
[326774461,1715350246504,-160.0,0.000269,2]
[326774462,1715350246513,-156.058457,0.000269,5]
[326774463,1715350246524,-7228.16906581,0.000269,7]
[326774464,1715350246546,-51.37279448,0.000269,7]
[326774465,1715350246557,-809.68945,0.000269,7]
[326774466,1715350246568,-18266.45882654,0.000269,7]
[326774467,1715350246580,-25574.52361261,0.000269,7]
[326774468,1715350246607,-256.08499722,0.000269,7]
[326774469,1715350246618,-753.95,0.000269,7]
[326774470,1715350246630,-2023.16539793,0.000269,7]
[326774484,1715351322197,-1047.24381892,0.00013675,2]
[326774485,1715351361346,-1213.08546547,0.00013696,2]
[326774486,1715351361372,-1047.24381892,0.00013697,2]
[326774487,1715351361401,-1004.10950933,0.00013698,2]
[326774511,1715351434724,-1540.650933,0.00017072,2]
[326774512,1715351434734,-300.0,0.00017158,2]
[326774513,1715351434744,-235.32680725,0.00017259,2]
[326774514,1715351434754,-402.91834291,0.00017259,2]
[326774515,1715351434766,-1899.62694235,0.00017259,2]
[326774516,1715351434778,-535.95397382,0.00017259,2]
[326774517,1715351434790,-2627.53883756,0.00017259,2]
[326774518,1715351434802,-4108.10744,0.00017259,2]
[326774519,1715351434814,-437.13659966,0.00017259,2]
[326774520,1715351434823,-499.99,0.00017808,2]
[326774521,1715351434834,-226.78,0.00019178,2]
[326774522,1715351434844,-5000.0,0.00019451,2]
[326774523,1715351434853,-150.15301608,0.00020107,2]
[326774524,1715351434863,-150.99,0.00020107,2]
[326774525,1715351434873,-154.65057799,0.00020268,2]
[326774526,1715351434883,-253.64227406,0.00021,2]
[326774527,1715351434893,-150.61165562,0.00021415,2]
[326774528,1715351434902,-155.15556544,0.0002152,2]
[326774529,1715351434912,-155.15556544,0.00021551,2]
[326774530,1715351434922,-155.15556544,0.00021624,2]
[326774531,1715351434935,-55.20462419,0.000219,2]
[326774532,1715351434947,-6709.96064327,0.000219,2]
[326774533,1715351434956,-150.15301608,0.00021901,2]
[326774534,1715351434966,-155.53423595,0.00021964,2]
[326774535,1715351434975,-155.53423595,0.0002203,2]
[326774536,1715351434984,-1227.0,0.0002204,2]
[326774537,1715351434994,-1260.0,0.0002204,2]
[326774538,1715351435003,-1059.0,0.0002204,2]
[326774539,1715351435014,-6285.04,0.00022735,2]
[326774540,1715351435024,-233.85,0.00022775,2]
[326774541,1715351435034,-882.0,0.000228,2]
[326774542,1715351435044,-179.05,0.0002292,2]
[326774544,1715351435055,-150.61165562,0.00022958,2]
[326774546,1715351435064,-2000.0,0.00022982,2]
[326774548,1715351435074,-250.0,0.00022999,2]
[326774550,1715351435083,-168.12,0.00023098,2]
[326774552,1715351435093,-160.85,0.00023137,2]
[326774554,1715351435103,-1000.0,0.0002317,2]
[326774556,1715351435114,-155.15556544,0.00023363,2]
[326774558,1715351435124,-251.64,0.0002338,2]
[326774560,1715351435134,-150.61165562,0.00023661,2]
[326774561,1715351435143,-250.0,0.00023694,2]
[326774562,1715351435153,-250.0,0.00023694,2]
[326774563,1715351435162,-150.15301608,0.00023803,2]
[326774564,1715351435171,-1000.0,0.00023914,2]
[326774565,1715351435181,-1072.80775125,0.00024,2]
[326774566,1715351435194,-432.59885389,0.00024,2]
[326774567,1715351435203,-750.52330383,0.00024279,2]
[326774568,1715351435212,-150.15301608,0.00024399,2]
[326774569,1715351435222,-155.53423595,0.00024474,2]
[326774570,1715351435231,-155.15556544,0.00024532,2]
[326774571,1715351435240,-150.15301608,0.00024633,2]
[326774572,1715351435250,-250.0,0.00024658,2]
[326774573,1715351435259,-154.65057799,0.00024931,2]
[326774574,1715351435268,-7263.39601947,0.00024999,2]
[326774575,1715351435280,-1881.48578764,0.00024999,2]
[326774576,1715351435289,-155.0,0.00025,2]
[326774577,1715351435299,-925.8669637,0.00025,2]
[326774578,1715351435308,-471.94368644,0.00025,2]
[326774579,1715351435318,-2219.93951707,0.00025,2]
[326774581,1715351435327,-994.708,0.0002504,2]
[326774583,1715351435337,-418.844,0.0002504,2]
[326774585,1715351435347,-318.366,0.0002504,2]
[326774588,1715351435357,-155.56828868,0.00025266,2]
[326774590,1715351435367,-150.15301608,0.00025269,2]
[326774592,1715351435377,-226.78,0.00025379,2]
[326774594,1715351435387,-150.0,0.00025409,2]
[326774596,1715351435397,-154.65057799,0.00025569,2]
[326774597,1715351435408,-959.36378921,0.00025629,2]
[326774600,1715351435419,-335.7844628,0.00025629,2]
[326774602,1715351435429,-154.65057799,0.00025698,2]
[326774604,1715351435440,-180.0,0.00025852,2]
[326774606,1715351435449,-155.15556544,0.00026277,2]
[326774608,1715351435460,-155.56828868,0.00026305,2]
[326774610,1715351435470,-214.97619056,0.0002636,2]
[326774612,1715351435479,-3329.39466453,0.00026389,2]
[326774618,1715351435525,-2506.67021947,0.00026389,2]
[326774620,1715351435535,-499.32978054,0.00026389,2]
[326774650,1715351440124,-3077.32513046,0.00026389,2]
[326774651,1715351440136,-3213.25401574,0.00026389,2]
[326774652,1715351440150,-324.13899197,0.00026389,2]
[326774653,1715351440163,-273.32832284,0.00026389,2]
[326774654,1715351440177,-37284.58733745,0.00026389,2]
[326774655,1715351440187,-200.39723,0.00026389,2]
[326774656,1715351440198,-200.397226,0.00026389,2]
[326774657,1715351440425,-150.0,0.00026409,2]
[326774658,1715351440435,-12641.25830243,0.000265,2]
[326774659,1715351440445,-164.02187723,0.00026514,2]
[326774660,1715351440455,-155.56828868,0.00026539,2]
[326774661,1715351440465,-150.69943881,0.00026626,2]
[326774664,1715351440475,-3502.08126514,0.00026632,2]
[326774666,1715351440491,-1561.86172371,0.00026646,2]
[326774667,1715351440502,-315.33686443,0.00026683,2]
[326774668,1715351440513,-200.0,0.00026684,2]
[326774669,1715351440523,-500.0,0.00026684,2]
[326774670,1715351440533,-200.0,0.00026685,2]
[326774671,1715351440543,-500.0,0.00026685,2]
[326774672,1715351440556,-200.0,0.00026685,2]
[326774673,1715351440567,-810.22,0.00026708,3]
[326774674,1715351440577,-5836.064884,0.00026718,2]
[326774675,1715351440587,-3576.654911,0.00026718,2]
[326774676,1715351440596,-41095.308668,0.00026718,2]
[326774677,1715351440606,-302.49127361,0.00026726,2]
[326774678,1715351440616,-300.0,0.00026757,2]
[326774679,1715351440626,-300.0,0.0002678,2]
[326774680,1715351440636,-7544.0418,0.0002678,2]
[326774681,1715351440645,-300.0,0.00026782,2]
[326774682,1715351440655,-500.0,0.00026783,2]
[326774683,1715351440665,-300.0,0.00026834,2]
[326774684,1715351440675,-150.15301608,0.00026836,2]
[326774685,1715351440685,-800.0,0.00026849,2]
[326774686,1715351440694,-7500.0,0.0002688,2]
[326774687,1715351440704,-13858.7359,0.0002688,2]
[326774688,1715351440715,-214.0,0.0002688,2]
[326774689,1715351440725,-500.0,0.0002688,2]
[326774690,1715351440735,-500.0,0.0002688,2]
[326774691,1715351440744,-500.0,0.0002688,2]
[326774692,1715351440754,-500.0,0.0002688,2]
[326774693,1715351440764,-500.0,0.0002688,2]
[326774694,1715351440773,-500.0,0.0002688,2]
[326774695,1715351440783,-500.0,0.0002688,2]
[326774696,1715351440792,-500.0,0.0002688,2]
[326774697,1715351440802,-500.0,0.0002688,2]
[326774698,1715351440812,-500.0,0.0002688,2]
[326774699,1715351440822,-500.0,0.0002688,2]
[326774700,1715351440831,-500.0,0.0002688,2]
[326774701,1715351440841,-500.0,0.0002688,2]
[326774702,1715351440851,-500.0,0.0002688,2]
[326774703,1715351440861,-500.0,0.0002688,2]
[326774704,1715351440871,-500.0,0.0002688,2]
[326774705,1715351440882,-500.0,0.0002688,2]
[326774706,1715351440892,-500.0,0.0002688,2]
[326774707,1715351440902,-500.0,0.0002688,2]
[326774708,1715351440912,-500.0,0.0002688,2]
[326774709,1715351440923,-500.0,0.0002688,2]
[326774710,1715351440933,-500.0,0.0002688,2]
[326774711,1715351440942,-500.0,0.0002688,2]
[326774712,1715351440952,-500.0,0.0002688,2]
[326774713,1715351440962,-165.85252569,0.00026882,2]
[326774714,1715351440972,-9781.93,0.00026883,2]
[326774715,1715351440982,-300.0,0.00026886,2]
[326774716,1715351440992,-225.0,0.00026898,2]
[326774717,1715351441002,-196.8758743,0.00026898,2]
[326774718,1715351441012,-155.0,0.00026898,2]
[326774719,1715351441022,-2319.4339856,0.00026898,2]
[326774720,1715351441032,-938.41528503,0.00026898,2]
[326774721,1715351441043,-865.9123112,0.00026898,2]
[326774722,1715351441053,-155.0,0.00026898,2]
[326774723,1715351441063,-642.48915098,0.00026898,2]
[326774724,1715351441073,-160.6591699,0.00026898,2]